[Event "Titled Tuesday Blitz August 09 Early 2022"]
[White "Maksimovic, Bojan"]
[Black "Khripachenko, Alexander"]
[WhiteFideId "14408120"]
[BlackFideId "54184975"]
[WhiteElo "2447"]
[BlackElo "2233"]
[Result "1-0"]
[Round "03"]
[TimeControl "180+1"]
[Date "2022.08.09"]
[WhiteClock "0:00:20"]
[BlackClock "0:01:40"]

1. e4 {[%clk 0:03:00]}  c6 {[%clk 0:03:00]} 2. Nf3 {[%clk 0:02:47]}  d5 {[%clk 0:03:00]} 3. d3 {[%clk 0:02:48]}  Qc7 {[%clk 0:02:59]} 4. Nc3 {[%clk 0:02:44]}  dxe4 {[%clk 0:02:59]} 5. Nxe4 {[%clk 0:02:42]}  Nf6 {[%clk 0:03:00]} 6. Be2 {[%clk 0:02:21]}  Nxe4 {[%clk 0:02:57]} 7. dxe4 {[%clk 0:02:22]}  e5 {[%clk 0:02:58]} 8. c3 {[%clk 0:02:18]}  Be7 {[%clk 0:02:58]} 9. O-O {[%clk 0:02:17]}  O-O {[%clk 0:02:58]} 10. a4 {[%clk 0:02:17]}  a5 {[%clk 0:02:57]} 11. Qc2 {[%clk 0:02:13]}  h6 {[%clk 0:02:57]} 12. Rd1 {[%clk 0:02:12]}  Be6 {[%clk 0:02:57]} 13. Nd2 {[%clk 0:02:09]}  Nd7 {[%clk 0:02:57]} 14. Bc4 {[%clk 0:02:09]}  Bxc4 {[%clk 0:02:56]} 15. Nxc4 {[%clk 0:02:10]}  Rfd8 {[%clk 0:02:55]} 16. Be3 {[%clk 0:02:10]}  Nc5 {[%clk 0:02:56]} 17. Rxd8+ {[%clk 0:01:56]}  Rxd8 {[%clk 0:02:55]} 18. b4 {[%clk 0:01:53]}  axb4 {[%clk 0:02:55]} 19. cxb4 {[%clk 0:01:54]}  Ne6 {[%clk 0:02:56]} 20. Bb6 {[%clk 0:01:54]}  Qc8 {[%clk 0:02:43]} 21. Bxd8 {[%clk 0:01:54]}  Qxd8 {[%clk 0:02:44]} 22. Rd1 {[%clk 0:01:33]}  Nd4 {[%clk 0:02:42]} 23. Qd3 {[%clk 0:01:32]}  f6 {[%clk 0:02:40]} 24. b5 {[%clk 0:01:29]}  cxb5 {[%clk 0:02:40]} 25. axb5 {[%clk 0:01:30]}  Qd7 {[%clk 0:02:39]} 26. b6 {[%clk 0:01:28]}  Qc6 {[%clk 0:02:34]} 27. h3 {[%clk 0:01:27]}  Kh7 {[%clk 0:02:33]} 28. Rb1 {[%clk 0:01:26]}  Bc5 {[%clk 0:02:23]} 29. Kh2 {[%clk 0:01:23]}  h5 {[%clk 0:02:15]} 30. Na5 {[%clk 0:01:21]}  Qd6 {[%clk 0:02:10]} 31. Nb3 {[%clk 0:01:13]}  Bxb6 {[%clk 0:02:02]} 32. Nxd4 {[%clk 0:01:11]}  Qxd4 {[%clk 0:02:01]} 33. Qxd4 {[%clk 0:00:38]}  Bxd4 {[%clk 0:02:01]} 34. Kg3 {[%clk 0:00:38]}  b6 {[%clk 0:02:00]} 35. f4 {[%clk 0:00:38]}  exf4+ {[%clk 0:02:00]} 36. Kxf4 {[%clk 0:00:39]}  Kg6 {[%clk 0:02:00]} 37. Rd1 {[%clk 0:00:34]}  Bc5 {[%clk 0:01:59]} 38. Rd5 {[%clk 0:00:34]}  Bg1 {[%clk 0:01:58]} 39. h4 {[%clk 0:00:31]}  Bf2 {[%clk 0:01:52]} 40. g4 {[%clk 0:00:30]}  hxg4 {[%clk 0:01:51]} 41. h5+ {[%clk 0:00:31]}  Kf7 {[%clk 0:01:47]} 42. Kxg4 {[%clk 0:00:31]}  Ke6 {[%clk 0:01:47]} 43. Kf4 {[%clk 0:00:31]}  Bc5 {[%clk 0:01:46]} 44. Rd1 {[%clk 0:00:28]}  b5 {[%clk 0:01:46]} 45. Rd5 {[%clk 0:00:24]}  Bd6+ {[%clk 0:01:46]} 46. Kg4 {[%clk 0:00:24]}  b4 {[%clk 0:01:47]} 47. Rb5 {[%clk 0:00:25]}  Be7 {[%clk 0:01:46]} 48. Rb7 {[%clk 0:00:24]}  Bf8 {[%clk 0:01:44]} 49. Kf3 {[%clk 0:00:22]}  Bd6 {[%clk 0:01:43]} 50. Rxg7 {[%clk 0:00:20]}  f5 {[%clk 0:01:40]} 51. Rg6+ {[%clk 0:00:20]} 1-0


[Site "https://www.chess.com"]

[Event "Titled Tuesday Blitz August 09 Early 2022"]
[White "McConnell, Griffin"]
[Black "Delaney, Killian"]
[WhiteFideId "30942551"]
[BlackFideId "2501570"]
[WhiteElo "2307"]
[BlackElo "2254"]
[Result "1-0"]
[Round "03"]
[TimeControl "180+1"]
[Date "2022.08.09"]
[WhiteClock "0:00:03"]
[BlackClock "0:00:02"]

1. e4 {[%clk 0:03:00]}  e6 {[%clk 0:02:59]} 2. Nf3 {[%clk 0:02:59]}  d5 {[%clk 0:02:57]} 3. e5 {[%clk 0:03:00]}  c5 {[%clk 0:02:54]} 4. g3 {[%clk 0:03:00]}  Nc6 {[%clk 0:02:53]} 5. Bg2 {[%clk 0:03:00]}  g5 {[%clk 0:02:50]} 6. h3 {[%clk 0:02:59]}  Bg7 {[%clk 0:02:47]} 7. d4 {[%clk 0:03:00]}  cxd4 {[%clk 0:02:45]} 8. Nxg5 {[%clk 0:02:47]}  Bxe5 {[%clk 0:02:42]} 9. O-O {[%clk 0:02:38]}  h6 {[%clk 0:02:39]} 10. Nf3 {[%clk 0:02:22]}  Bg7 {[%clk 0:02:37]} 11. Nbd2 {[%clk 0:02:22]}  Nge7 {[%clk 0:02:34]} 12. Nb3 {[%clk 0:02:22]}  e5 {[%clk 0:02:31]} 13. Re1 {[%clk 0:02:18]}  O-O {[%clk 0:02:26]} 14. c3 {[%clk 0:01:36]}  d3 {[%clk 0:02:15]} 15. Nfd2 {[%clk 0:01:22]}  e4 {[%clk 0:02:05]} 16. Nf1 {[%clk 0:01:22]}  f5 {[%clk 0:02:00]} 17. Be3 {[%clk 0:01:16]}  Ng6 {[%clk 0:01:49]} 18. Qd2 {[%clk 0:01:14]}  Kh7 {[%clk 0:01:47]} 19. h4 {[%clk 0:01:08]}  f4 {[%clk 0:01:46]} 20. h5 {[%clk 0:01:08]}  fxe3 {[%clk 0:01:37]} 21. hxg6+ {[%clk 0:01:08]}  Kxg6 {[%clk 0:01:38]} 22. Nxe3 {[%clk 0:01:05]}  Ne5 {[%clk 0:01:16]} 23. Nd4 {[%clk 0:00:51]}  Kf7 {[%clk 0:00:55]} 24. f4 {[%clk 0:00:31]}  Nc6 {[%clk 0:00:43]} 25. Ndf5 {[%clk 0:00:20]}  Bxf5 {[%clk 0:00:39]} 26. Nxf5 {[%clk 0:00:20]}  Kg8 {[%clk 0:00:38]} 27. Nxg7 {[%clk 0:00:16]}  Kxg7 {[%clk 0:00:39]} 28. c4 {[%clk 0:00:15]}  Re8 {[%clk 0:00:23]} 29. cxd5 {[%clk 0:00:15]}  Qxd5 {[%clk 0:00:23]} 30. Qc3+ {[%clk 0:00:14]}  Kg8 {[%clk 0:00:19]} 31. Qf6 {[%clk 0:00:13]}  Qd4+ {[%clk 0:00:12]} 32. Qxd4 {[%clk 0:00:12]}  Nxd4 {[%clk 0:00:13]} 33. Rxe4 {[%clk 0:00:10]}  d2 {[%clk 0:00:05]} 34. Rd1 {[%clk 0:00:10]}  Rxe4 {[%clk 0:00:04]} 35. Bxe4 {[%clk 0:00:09]}  Re8 {[%clk 0:00:05]} 36. Bd5+ {[%clk 0:00:06]}  Kg7 {[%clk 0:00:05]} 37. Rxd2 {[%clk 0:00:07]}  Nf5 {[%clk 0:00:04]} 38. Kf2 {[%clk 0:00:07]}  Ne3 {[%clk 0:00:04]} 39. Bf3 {[%clk 0:00:06]}  Nc4 {[%clk 0:00:04]} 40. Rd7+ {[%clk 0:00:06]}  Kf6 {[%clk 0:00:04]} 41. Rxb7 {[%clk 0:00:06]}  Rd8 {[%clk 0:00:05]} 42. Rxa7 {[%clk 0:00:05]}  Rd2+ {[%clk 0:00:06]} 43. Kg1 {[%clk 0:00:04]}  Rxb2 {[%clk 0:00:07]} 44. Ra6+ {[%clk 0:00:04]}  Ke7 {[%clk 0:00:05]} 45. Ra7+ {[%clk 0:00:03]}  Kf6 {[%clk 0:00:05]} 46. Ra6+ {[%clk 0:00:04]}  Ke7 {[%clk 0:00:04]} 47. Ra7+ {[%clk 0:00:04]}  Kd6 {[%clk 0:00:04]} 48. Ra6+ {[%clk 0:00:04]}  Kd7 {[%clk 0:00:05]} 49. Rxh6 {[%clk 0:00:05]}  Nd2 {[%clk 0:00:03]} 50. Bg2 {[%clk 0:00:04]}  Rxa2 {[%clk 0:00:03]} 51. Kh2 {[%clk 0:00:04]}  Ke7 {[%clk 0:00:03]} 52. Rh7+ {[%clk 0:00:04]}  Kf6 {[%clk 0:00:03]} 53. Rh6+ {[%clk 0:00:04]}  Kg7 {[%clk 0:00:03]} 54. Rc6 {[%clk 0:00:03]}  Nf3+ {[%clk 0:00:01]} 55. Kh3 {[%clk 0:00:04]}  Ne1 {[%clk 0:00:02]} 56. Be4 {[%clk 0:00:03]} 1-0


[Site "https://www.chess.com"]

[Event "Titled Tuesday Blitz August 09 Early 2022"]
[White "Melaugh, Shane"]
[Black "Machidon, Cristi"]
[WhiteFideId "2509580"]
[BlackFideId "13904590"]
[WhiteElo "1946"]
[BlackElo "2312"]
[Result "1-0"]
[Round "03"]
[TimeControl "180+1"]
[Date "2022.08.09"]
[WhiteClock "0:02:07"]
[BlackClock "0:00:11"]

1. c4 {[%clk 0:02:59]}  e5 {[%clk 0:02:58]} 2. Nc3 {[%clk 0:03:00]}  Nf6 {[%clk 0:02:58]} 3. Nf3 {[%clk 0:03:00]}  Nc6 {[%clk 0:02:56]} 4. e4 {[%clk 0:03:01]}  Bc5 {[%clk 0:02:52]} 5. Nxe5 {[%clk 0:03:01]}  Nxe5 {[%clk 0:02:53]} 6. d4 {[%clk 0:03:02]}  Bd6 {[%clk 0:02:52]} 7. c5 {[%clk 0:03:01]}  Bxc5 {[%clk 0:02:42]} 8. dxe5 {[%clk 0:03:02]}  Ng8 {[%clk 0:02:42]} 9. Qg4 {[%clk 0:03:00]}  Kf8 {[%clk 0:02:26]} 10. Qg3 {[%clk 0:02:41]}  d6 {[%clk 0:02:18]} 11. Bf4 {[%clk 0:02:38]}  Ne7 {[%clk 0:01:53]} 12. exd6 {[%clk 0:02:34]}  cxd6 {[%clk 0:01:40]} 13. O-O-O {[%clk 0:02:34]}  Be6 {[%clk 0:01:39]} 14. Bxd6 {[%clk 0:02:33]}  Qa5 {[%clk 0:01:17]} 15. Qg5 {[%clk 0:02:21]}  Rc8 {[%clk 0:00:12]} 16. Qxe7+ {[%clk 0:02:07]}  Kg8 {[%clk 0:00:11]} 17. Bxc5 {[%clk 0:02:07]} 1-0


[Site "https://www.chess.com"]

[Event "Titled Tuesday Blitz August 09 Early 2022"]
[White "Menezes, Christoph"]
[Black "Malek, Jan"]
[WhiteFideId "1617001"]
[BlackFideId "21864080"]
[WhiteElo "2368"]
[BlackElo "2143"]
[Result "0-1"]
[Round "03"]
[TimeControl "180+1"]
[Date "2022.08.09"]
[WhiteClock "0:00:02"]
[BlackClock "0:00:15"]

1. e4 {[%clk 0:03:00]}  e6 {[%clk 0:02:59]} 2. d4 {[%clk 0:03:00]}  d5 {[%clk 0:02:59]} 3. Nc3 {[%clk 0:03:01]}  Nf6 {[%clk 0:02:59]} 4. e5 {[%clk 0:03:00]}  Nfd7 {[%clk 0:02:59]} 5. Nce2 {[%clk 0:02:54]}  c5 {[%clk 0:02:59]} 6. f4 {[%clk 0:02:48]}  Nc6 {[%clk 0:02:58]} 7. c3 {[%clk 0:02:46]}  a5 {[%clk 0:02:57]} 8. Nf3 {[%clk 0:02:46]}  a4 {[%clk 0:02:58]} 9. a3 {[%clk 0:02:44]}  Be7 {[%clk 0:02:57]} 10. h4 {[%clk 0:02:30]}  b5 {[%clk 0:02:55]} 11. Kf2 {[%clk 0:02:04]}  Qb6 {[%clk 0:02:54]} 12. Be3 {[%clk 0:01:57]}  f6 {[%clk 0:02:52]} 13. Ng3 {[%clk 0:01:35]}  fxe5 {[%clk 0:02:51]} 14. dxe5 {[%clk 0:01:30]}  O-O {[%clk 0:02:35]} 15. Kg1 {[%clk 0:01:26]}  d4 {[%clk 0:02:32]} 16. cxd4 {[%clk 0:01:07]}  cxd4 {[%clk 0:02:31]} 17. Nxd4 {[%clk 0:01:08]}  Nxd4 {[%clk 0:02:08]} 18. Bxd4 {[%clk 0:01:06]}  Bc5 {[%clk 0:02:09]} 19. Ne2 {[%clk 0:01:00]}  Bb7 {[%clk 0:02:06]} 20. Kh2 {[%clk 0:00:41]}  Rad8 {[%clk 0:02:05]} 21. Bxc5 {[%clk 0:00:33]}  Nxc5 {[%clk 0:02:06]} 22. Qc2 {[%clk 0:00:32]}  Be4 {[%clk 0:01:59]} 23. Qc3 {[%clk 0:00:30]}  Rd3 {[%clk 0:01:57]} 24. Qb4 {[%clk 0:00:30]}  Rb3 {[%clk 0:01:44]} 25. Qd4 {[%clk 0:00:30]}  Rd8 {[%clk 0:01:43]} 26. Qf2 {[%clk 0:00:30]}  Rxb2 {[%clk 0:01:38]} 27. Rc1 {[%clk 0:00:29]}  Rc8 {[%clk 0:01:35]} 28. Qd4 {[%clk 0:00:29]}  Rb3 {[%clk 0:01:08]} 29. Ng3 {[%clk 0:00:28]}  Bd5 {[%clk 0:01:04]} 30. f5 {[%clk 0:00:13]}  Rxg3 {[%clk 0:00:59]} 31. Rxc5 {[%clk 0:00:10]}  Rxc5 {[%clk 0:00:40]} 32. Kxg3 {[%clk 0:00:10]}  Qc7 {[%clk 0:00:39]} 33. Kh2 {[%clk 0:00:10]}  exf5 {[%clk 0:00:32]} 34. Bd3 {[%clk 0:00:10]}  Be6 {[%clk 0:00:31]} 35. Rf1 {[%clk 0:00:10]}  Qxe5+ {[%clk 0:00:30]} 36. Qxe5 {[%clk 0:00:10]}  Rxe5 {[%clk 0:00:31]} 37. Rc1 {[%clk 0:00:10]}  b4 {[%clk 0:00:30]} 38. axb4 {[%clk 0:00:10]}  a3 {[%clk 0:00:30]} 39. Bc4 {[%clk 0:00:09]}  Bxc4 {[%clk 0:00:25]} 40. Rxc4 {[%clk 0:00:09]}  Re4 {[%clk 0:00:18]} 41. Rc8+ {[%clk 0:00:09]}  Kf7 {[%clk 0:00:19]} 42. Ra8 {[%clk 0:00:08]}  Rxh4+ {[%clk 0:00:19]} 43. Kg3 {[%clk 0:00:09]}  Rg4+ {[%clk 0:00:18]} 44. Kf3 {[%clk 0:00:08]}  Rxb4 {[%clk 0:00:19]} 45. Rxa3 {[%clk 0:00:08]}  Kg6 {[%clk 0:00:20]} 46. Ra6+ {[%clk 0:00:08]}  Kg5 {[%clk 0:00:19]} 47. Ra7 {[%clk 0:00:08]}  Rb3+ {[%clk 0:00:19]} 48. Kf2 {[%clk 0:00:08]}  Kh6 {[%clk 0:00:20]} 49. Ra6+ {[%clk 0:00:08]}  g6 {[%clk 0:00:21]} 50. Kg1 {[%clk 0:00:08]}  Kg5 {[%clk 0:00:21]} 51. Kh2 {[%clk 0:00:09]}  h5 {[%clk 0:00:21]} 52. Ra4 {[%clk 0:00:09]}  h4 {[%clk 0:00:21]} 53. Ra6 {[%clk 0:00:10]}  Rg3 {[%clk 0:00:21]} 54. Ra8 {[%clk 0:00:09]}  f4 {[%clk 0:00:20]} 55. Ra6 {[%clk 0:00:07]}  Rb3 {[%clk 0:00:19]} 56. Ra5+ {[%clk 0:00:07]}  Kg4 {[%clk 0:00:19]} 57. Ra1 {[%clk 0:00:05]}  Rb2 {[%clk 0:00:19]} 58. Ra6 {[%clk 0:00:05]}  g5 {[%clk 0:00:17]} 59. Ra3 {[%clk 0:00:04]}  Rf2 {[%clk 0:00:15]} 60. Kg1 {[%clk 0:00:04]}  Re2 {[%clk 0:00:15]} 61. Kh2 {[%clk 0:00:05]}  Re3 {[%clk 0:00:16]} 62. Ra4 {[%clk 0:00:04]}  h3 {[%clk 0:00:16]} 63. g3 {[%clk 0:00:03]}  Re2+ {[%clk 0:00:15]} 64. Kg1 {[%clk 0:00:03]}  Kxg3 {[%clk 0:00:15]} 65. Ra3+ {[%clk 0:00:03]}  f3 {[%clk 0:00:15]} 66. Ra4 {[%clk 0:00:02]}  Re1# {[%clk 0:00:15]} 0-1


[Site "https://www.chess.com"]

[Event "Titled Tuesday Blitz August 09 Early 2022"]
[White "Mitrabha, Guha"]
[Black "Mortazavi, Ali"]
[WhiteFideId "5057000"]
[BlackFideId "401323"]
[WhiteElo "2499"]
[BlackElo "2339"]
[Result "1/2-1/2"]
[Round "03"]
[TimeControl "180+1"]
[Date "2022.08.09"]
[WhiteClock "0:00:03"]
[BlackClock "0:00:12"]

1. Nf3 {[%clk 0:02:54]}  Nf6 {[%clk 0:02:59]} 2. d4 {[%clk 0:02:53]}  g6 {[%clk 0:02:59]} 3. g3 {[%clk 0:02:53]}  Bg7 {[%clk 0:03:00]} 4. Bg2 {[%clk 0:02:54]}  O-O {[%clk 0:03:01]} 5. O-O {[%clk 0:02:55]}  d6 {[%clk 0:03:01]} 6. c4 {[%clk 0:02:56]}  Nbd7 {[%clk 0:03:01]} 7. Nc3 {[%clk 0:02:56]}  e5 {[%clk 0:03:02]} 8. Qc2 {[%clk 0:02:56]}  Re8 {[%clk 0:03:01]} 9. Rd1 {[%clk 0:02:57]}  c6 {[%clk 0:02:58]} 10. b3 {[%clk 0:02:55]}  Qa5 {[%clk 0:02:34]} 11. Bb2 {[%clk 0:02:36]}  e4 {[%clk 0:02:33]} 12. Ne1 {[%clk 0:02:31]}  e3 {[%clk 0:02:33]} 13. f4 {[%clk 0:02:30]}  Ng4 {[%clk 0:02:05]} 14. d5 {[%clk 0:02:19]}  Ndf6 {[%clk 0:01:42]} 15. dxc6 {[%clk 0:01:49]}  bxc6 {[%clk 0:01:41]} 16. Rxd6 {[%clk 0:01:48]}  Qh5 {[%clk 0:01:34]} 17. Nf3 {[%clk 0:01:41]}  Bf5 {[%clk 0:01:32]} 18. Qc1 {[%clk 0:01:40]}  Nf2 {[%clk 0:01:08]} 19. Na4 {[%clk 0:00:53]}  N6g4 {[%clk 0:00:40]} 20. Bxg7 {[%clk 0:00:49]}  Kxg7 {[%clk 0:00:36]} 21. Qc3+ {[%clk 0:00:48]}  Kg8 {[%clk 0:00:36]} 22. Nc5 {[%clk 0:00:46]}  Nh3+ {[%clk 0:00:25]} 23. Kf1 {[%clk 0:00:27]}  Bc8 {[%clk 0:00:19]} 24. Rad1 {[%clk 0:00:16]}  Nhf2 {[%clk 0:00:15]} 25. Rd8 {[%clk 0:00:06]}  Bf5 {[%clk 0:00:15]} 26. Rxe8+ {[%clk 0:00:06]}  Rxe8 {[%clk 0:00:15]} 27. Rd6 {[%clk 0:00:05]}  Nxh2+ {[%clk 0:00:14]} 28. Nxh2 {[%clk 0:00:05]}  Qxh2 {[%clk 0:00:15]} 29. Nd7 {[%clk 0:00:06]}  Bh3 {[%clk 0:00:11]} 30. Nf6+ {[%clk 0:00:06]}  Kf8 {[%clk 0:00:12]} 31. Nxh7+ {[%clk 0:00:06]}  Kg8 {[%clk 0:00:12]} 32. Nf6+ {[%clk 0:00:07]}  Kf8 {[%clk 0:00:12]} 33. Nh7+ {[%clk 0:00:05]}  Kg8 {[%clk 0:00:12]} 34. Nf6+ {[%clk 0:00:03]}  Kf8 {[%clk 0:00:12]} 35. Nh7+ {[%clk 0:00:03]} 1/2-1/2


[Site "https://www.chess.com"]

[Event "Titled Tuesday Blitz August 09 Early 2022"]
[White "Molina, Roberto Junio Brito"]
[Black "Piesik, Piotr"]
[WhiteFideId "2109450"]
[BlackFideId "1136194"]
[WhiteElo "2812"]
[BlackElo "2643"]
[Result "1-0"]
[Round "03"]
[TimeControl "180+1"]
[Date "2022.08.09"]
[WhiteClock "0:01:24"]
[BlackClock "0:00:34"]

1. d4 {[%clk 0:03:00]}  c5 {[%clk 0:02:58]} 2. d5 {[%clk 0:03:00]}  e5 {[%clk 0:02:58]} 3. e4 {[%clk 0:02:59]}  d6 {[%clk 0:02:58]} 4. Nc3 {[%clk 0:02:57]}  Be7 {[%clk 0:02:58]} 5. Be2 {[%clk 0:02:56]}  Bg5 {[%clk 0:02:57]} 6. Bg4 {[%clk 0:02:56]}  Bxc1 {[%clk 0:02:56]} 7. Rxc1 {[%clk 0:02:57]}  Nd7 {[%clk 0:02:54]} 8. Qd2 {[%clk 0:02:51]}  a6 {[%clk 0:02:53]} 9. a4 {[%clk 0:02:51]}  Ne7 {[%clk 0:02:51]} 10. h4 {[%clk 0:02:49]}  O-O {[%clk 0:02:51]} 11. Nge2 {[%clk 0:02:46]}  f5 {[%clk 0:02:45]} 12. exf5 {[%clk 0:02:46]}  Nf6 {[%clk 0:02:45]} 13. f3 {[%clk 0:02:40]}  Bxf5 {[%clk 0:02:36]} 14. Bxf5 {[%clk 0:02:32]}  Nxf5 {[%clk 0:02:37]} 15. Qg5 {[%clk 0:02:29]}  Nd4 {[%clk 0:02:33]} 16. Ng3 {[%clk 0:02:17]}  b5 {[%clk 0:02:22]} 17. O-O {[%clk 0:02:13]}  b4 {[%clk 0:02:20]} 18. Nce4 {[%clk 0:02:13]}  Nxd5 {[%clk 0:02:05]} 19. Qd2 {[%clk 0:02:03]}  Nf4 {[%clk 0:01:53]} 20. Rcd1 {[%clk 0:01:55]}  Qxh4 {[%clk 0:01:40]} 21. c3 {[%clk 0:01:56]}  bxc3 {[%clk 0:01:32]} 22. bxc3 {[%clk 0:01:57]}  Nf5 {[%clk 0:01:30]} 23. Nxf5 {[%clk 0:01:55]}  Rxf5 {[%clk 0:01:31]} 24. g3 {[%clk 0:01:53]}  Rg5 {[%clk 0:01:06]} 25. Kf2 {[%clk 0:01:45]}  Nh3+ {[%clk 0:00:37]} 26. Ke2 {[%clk 0:01:31]}  Rxg3 {[%clk 0:00:37]} 27. Qd5+ {[%clk 0:01:29]}  Kf8 {[%clk 0:00:33]} 28. Qxa8+ {[%clk 0:01:28]}  Ke7 {[%clk 0:00:34]} 29. Qb7+ {[%clk 0:01:24]} 1-0


[Site "https://www.chess.com"]

[Event "Titled Tuesday Blitz August 09 Early 2022"]
[White "Namitbir Singh Walia"]
[Black "Hartikainen, Jarmo"]
[WhiteFideId "35071068"]
[BlackFideId "503134"]
[WhiteElo "1664"]
[BlackElo "2132"]
[Result "0-1"]
[Round "03"]
[TimeControl "180+1"]
[Date "2022.08.09"]
[WhiteClock "0:02:11"]
[BlackClock "0:00:57"]

1. d4 {[%clk 0:03:00]}  Nf6 {[%clk 0:02:59]} 2. c4 {[%clk 0:03:01]}  e6 {[%clk 0:02:59]} 3. Nf3 {[%clk 0:03:01]}  b6 {[%clk 0:02:58]} 4. g3 {[%clk 0:03:02]}  Bb4+ {[%clk 0:02:57]} 5. Bd2 {[%clk 0:03:01]}  Qe7 {[%clk 0:02:55]} 6. Bg2 {[%clk 0:03:00]}  Bb7 {[%clk 0:02:56]} 7. O-O {[%clk 0:02:59]}  Bxd2 {[%clk 0:02:53]} 8. Nbxd2 {[%clk 0:03:00]}  d6 {[%clk 0:02:52]} 9. Qc2 {[%clk 0:02:58]}  Nbd7 {[%clk 0:02:52]} 10. e4 {[%clk 0:02:58]}  e5 {[%clk 0:02:48]} 11. Rfe1 {[%clk 0:02:56]}  O-O {[%clk 0:02:47]} 12. b4 {[%clk 0:02:39]}  Rfe8 {[%clk 0:02:36]} 13. d5 {[%clk 0:02:37]}  a5 {[%clk 0:02:13]} 14. a3 {[%clk 0:02:37]}  axb4 {[%clk 0:02:12]} 15. axb4 {[%clk 0:02:38]}  Rxa1 {[%clk 0:02:11]} 16. Rb1 {[%clk 0:02:39]}  Rxb1+ {[%clk 0:02:10]} 17. Nxb1 {[%clk 0:02:33]}  Ra8 {[%clk 0:02:08]} 18. h3 {[%clk 0:02:34]}  c6 {[%clk 0:02:08]} 19. Nh4 {[%clk 0:02:32]}  g6 {[%clk 0:02:01]} 20. Nc3 {[%clk 0:02:30]}  cxd5 {[%clk 0:02:01]} 21. exd5 {[%clk 0:02:29]}  Rc8 {[%clk 0:01:43]} 22. Qd3 {[%clk 0:02:27]}  e4 {[%clk 0:01:38]} 23. Qe2 {[%clk 0:02:22]}  Ne5 {[%clk 0:01:32]} 24. Nxe4 {[%clk 0:02:18]}  Nxe4 {[%clk 0:01:28]} 25. Qxe4 {[%clk 0:02:17]}  Rxc4 {[%clk 0:01:26]} 26. Qe3 {[%clk 0:02:17]}  Rxb4 {[%clk 0:01:01]} 27. f4 {[%clk 0:02:11]}  Rb1+ {[%clk 0:00:58]} 28. Kh2 {[%clk 0:02:11]}  Ng4+ {[%clk 0:00:57]} 0-1


[Site "https://www.chess.com"]

[Event "Titled Tuesday Blitz August 09 Early 2022"]
[White "Nurmanova, Alua"]
[Black "Flynn, Jacob"]
[WhiteFideId "13729390"]
[BlackFideId "2509393"]
[WhiteElo "1921"]
[BlackElo "1920"]
[Result "1/2-1/2"]
[Round "03"]
[TimeControl "180+1"]
[Date "2022.08.09"]
[WhiteClock "0:00:20"]
[BlackClock "0:00:46"]

1. e4 {[%clk 0:03:00]}  e5 {[%clk 0:02:58]} 2. Nf3 {[%clk 0:03:00]}  Nc6 {[%clk 0:02:58]} 3. Bb5 {[%clk 0:02:59]}  a6 {[%clk 0:02:58]} 4. Ba4 {[%clk 0:02:59]}  Nf6 {[%clk 0:02:58]} 5. O-O {[%clk 0:02:58]}  Be7 {[%clk 0:02:58]} 6. Re1 {[%clk 0:02:58]}  b5 {[%clk 0:02:58]} 7. Bb3 {[%clk 0:02:59]}  O-O {[%clk 0:02:58]} 8. a4 {[%clk 0:02:53]}  Rb8 {[%clk 0:02:57]} 9. c3 {[%clk 0:02:48]}  d5 {[%clk 0:02:46]} 10. d4 {[%clk 0:02:24]}  dxe4 {[%clk 0:02:39]} 11. Nxe5 {[%clk 0:02:23]}  Nxe5 {[%clk 0:02:37]} 12. dxe5 {[%clk 0:02:24]}  Qxd1 {[%clk 0:02:32]} 13. Bxd1 {[%clk 0:02:15]}  Nd7 {[%clk 0:02:22]} 14. Rxe4 {[%clk 0:02:12]}  Bb7 {[%clk 0:02:22]} 15. Re1 {[%clk 0:02:11]}  Nc5 {[%clk 0:02:18]} 16. Bc2 {[%clk 0:01:41]}  Bd5 {[%clk 0:02:06]} 17. axb5 {[%clk 0:01:35]}  axb5 {[%clk 0:02:00]} 18. Be3 {[%clk 0:01:31]}  Nb3 {[%clk 0:01:54]} 19. Ra7 {[%clk 0:01:27]}  Bd8 {[%clk 0:01:47]} 20. Bxb3 {[%clk 0:01:15]}  Bxb3 {[%clk 0:01:46]} 21. Nd2 {[%clk 0:01:15]}  Be6 {[%clk 0:01:46]} 22. Ne4 {[%clk 0:01:08]}  b4 {[%clk 0:01:41]} 23. Bc5 {[%clk 0:01:05]}  bxc3 {[%clk 0:01:37]} 24. Nxc3 {[%clk 0:00:52]}  Re8 {[%clk 0:01:36]} 25. b4 {[%clk 0:00:52]}  f6 {[%clk 0:01:27]} 26. f4 {[%clk 0:00:49]}  fxe5 {[%clk 0:01:26]} 27. fxe5 {[%clk 0:00:49]}  Bh4 {[%clk 0:01:23]} 28. g3 {[%clk 0:00:48]}  Bg5 {[%clk 0:01:20]} 29. Ne4 {[%clk 0:00:46]}  Bd8 {[%clk 0:01:17]} 30. h4 {[%clk 0:00:39]}  Bd5 {[%clk 0:01:09]} 31. Nc3 {[%clk 0:00:39]}  Bf7 {[%clk 0:01:03]} 32. Ra6 {[%clk 0:00:32]}  Re6 {[%clk 0:01:01]} 33. Rxe6 {[%clk 0:00:24]}  Bxe6 {[%clk 0:01:02]} 34. Kf2 {[%clk 0:00:24]}  Ra8 {[%clk 0:01:00]} 35. Rd1 {[%clk 0:00:21]}  Kf7 {[%clk 0:00:57]} 36. Ke3 {[%clk 0:00:21]}  Ke8 {[%clk 0:00:57]} 37. Rf1 {[%clk 0:00:20]}  Be7 {[%clk 0:00:55]} 38. Kd4 {[%clk 0:00:20]}  Rd8+ {[%clk 0:00:54]} 39. Ke3 {[%clk 0:00:20]}  Ra8 {[%clk 0:00:46]} 40. Kd4 {[%clk 0:00:20]}  Rd8+ {[%clk 0:00:45]} 41. Ke3 {[%clk 0:00:20]}  Ra8 {[%clk 0:00:46]} 1/2-1/2


[Site "https://www.chess.com"]

[Event "Titled Tuesday Blitz August 09 Early 2022"]
[White "Orzech, Dominik"]
[Black "Korchmar, Vasiliy"]
[WhiteFideId "1115065"]
[BlackFideId "24131750"]
[WhiteElo "2272"]
[BlackElo "2370"]
[Result "1-0"]
[Round "03"]
[TimeControl "180+1"]
[Date "2022.08.09"]
[WhiteClock "0:01:32"]
[BlackClock "0:00:01"]

1. Nf3 {[%clk 0:03:00]}  d5 {[%clk 0:02:58]} 2. c4 {[%clk 0:03:00]}  c6 {[%clk 0:02:58]} 3. d4 {[%clk 0:02:58]}  Nf6 {[%clk 0:02:57]} 4. Nc3 {[%clk 0:02:56]}  e6 {[%clk 0:02:58]} 5. cxd5 {[%clk 0:02:56]}  exd5 {[%clk 0:02:57]} 6. Bg5 {[%clk 0:02:56]}  Bd6 {[%clk 0:02:51]} 7. Qc2 {[%clk 0:02:55]}  h6 {[%clk 0:02:50]} 8. Bh4 {[%clk 0:02:55]}  Bg4 {[%clk 0:02:46]} 9. Ne5 {[%clk 0:02:51]}  Be6 {[%clk 0:02:46]} 10. e3 {[%clk 0:02:49]}  Nbd7 {[%clk 0:02:43]} 11. f4 {[%clk 0:02:48]}  g5 {[%clk 0:02:34]} 12. Bg3 {[%clk 0:02:43]}  gxf4 {[%clk 0:02:22]} 13. exf4 {[%clk 0:02:40]}  Bxe5 {[%clk 0:01:34]} 14. dxe5 {[%clk 0:02:36]}  Ne4 {[%clk 0:01:34]} 15. Nxe4 {[%clk 0:02:33]}  dxe4 {[%clk 0:01:35]} 16. Qxe4 {[%clk 0:02:32]}  Qa5+ {[%clk 0:01:22]} 17. b4 {[%clk 0:02:31]}  Qa3 {[%clk 0:01:21]} 18. Rd1 {[%clk 0:02:10]}  O-O-O {[%clk 0:01:09]} 19. f5 {[%clk 0:02:00]}  Qc3+ {[%clk 0:00:58]} 20. Kf2 {[%clk 0:01:55]}  Bxa2 {[%clk 0:00:39]} 21. Be2 {[%clk 0:01:52]}  Rhe8 {[%clk 0:00:17]} 22. Rc1 {[%clk 0:01:49]}  Qb2 {[%clk 0:00:03]} 23. e6 {[%clk 0:01:44]}  fxe6 {[%clk 0:00:02]} 24. Rxc6+ {[%clk 0:01:40]}  bxc6 {[%clk 0:00:01]} 25. Qxc6# {[%clk 0:01:32]} 1-0


[Site "https://www.chess.com"]